Cogmind - Beta 15 @@@ ROGUE MODE // 2025.06.13 @ 18:36:38 Player: ned_arb Result: Destroyed by as-01617 with Assembled Maul Performance ------------- Evolutions (1) 500 Regions Visited (4) 800 Robots Destroyed (84) 420 Value Destroyed (1756) 1756 Prototype IDs (5) 100 Alien Tech Used (0) 0 Bonus (47) 47 TOTAL SCORE: 3623 Bonus ------- High Alert Combat Kills 47 Cogmind --------- Core Integrity 0/400 Matter 300/300 Energy 100/100 System Corruption 22% Temperature Cool (0) Movement Core (700) Ox13 Location -9/Exiles Parts ------- > --- POWER (1) -------- (None) > --- PROPULSION (3) --- (None) > --- UTILITY (3) ------ High-capacity Storage Unit > --- WEAPON (2) ------- (None) > --- INVENTORY (20) --- Improved Ion Engine Heavy Ion Engine Heavy Ion Engine Light Treads Light Treads Light Treads Light Treads Large Matter Pod (150) Advanced Targeting Computer Medium Armor Plating Medium Armor Plating Medium Armor Plating Hardened Light Armor Plating Hacking Suite Improved Light Cannon Improved Light Cannon Improved Light Cannon Improved Light Cannon Rocket Launcher Scythe Peak State ------------ > --- POWER ------------ Heavy Ion Engine > --- PROPULSION ------- Light Treads Light Treads Improved Treads > --- UTILITY ---------- Improved Heat Sink High-capacity Storage Unit Hardened Light Armor Plating > --- WEAPON ----------- Advanced Beam Cannon Advanced Beam Cannon > --- INVENTORY -------- Heavy Ion Engine Heavy Ion Engine Light Treads Light Treads Light Treads Light Treads Seismic Detector Light Armor Plating Medium Armor Plating Medium Armor Plating Medium Armor Plating Improved Light Cannon Improved Light Cannon Improved Light Cannon Improved Light Cannon Improved Light Cannon Grenade Launcher Mining Laser [Rating: 22] Favorites ----------- Power Ion Engine Engine Ion Engine Propulsion Light Treads Treads Light Treads Wheel Compact Wheel Utility High-capacity Storage Unit Device Seismic Detector Storage High-capacity Storage Unit Processor Advanced Targeting Computer Protection Light Armor Plating Weapon Improved Light Cannon Energy Gun Improved Medium Laser Energy Cannon Advanced Beam Cannon Ballistic Gun Light Assault Rifle Ballistic Cannon Improved Light Cannon Launcher Grenade Launcher Build | -11 -10 -9 -9 -9 ------- Run | Yrd Mat Mat Min Exi Slots Evolved 2 | . . 2 . . Power . | . . . . . Propulsion 1 | . . 1 . . Utility 1 | . . 1 . . Weapon . | . . . . . Parts Attached 56 | 6 11 36 2 1 Power 6 | 1 2 3 . . Engine 6 | 1 2 3 . . Core . | . . . . . Reactor . | . . . . . Propulsion 14 | 2 1 10 1 . Treads 10 | 2 1 6 1 . Leg . | . . . . . Wheel 4 | . . 4 . . Hover . | . . . . . Flight . | . . . . . Utility 17 | 1 5 10 . 1 Device 6 | . 1 5 . . Storage 4 | 1 2 . . 1 Processor 3 | . 1 2 . . Hackware . | . . . . . Protection 4 | . 1 3 . . Artifact . | . . . . . Weapon 19 | 2 3 13 1 . Energy Gun 6 | 2 . 4 . . Energy Cannon 2 | . . 2 . . Ballistic Gun 5 | . 3 2 . . Ballistic Cannon 4 | . . 4 . . Launcher 2 | . . 1 1 . Special Weapon . | . . . . . Impact Weapon . | . . . . . Slashing Weapon . | . . . . . Piercing Weapon . | . . . . . Special Melee Weapon . | . . . . . Unidentified Prototypes 5 | . . 5 . . Parts Lost 10 | . . 3 . 7 Power 1 | . . . . 1 Propulsion 5 | . . 2 . 3 Utility 2 | . . . . 2 Weapon 2 | . . 1 . 1 Highest Loss Streak 7 | . . 1 . 7 To Critical Strikes . | . . . . . Average Backups 11 | . 3 13 20 20 Power 1 | . . 1 3 3 Propulsion 2 | . 1 2 4 4 Utility 3 | . 1 4 6 7 Weapon 4 | . . 5 6 6 Tool/Special . | . . . . . Unused Backups 21 | . 1 3 . 17 Power 3 | . . . . 3 Propulsion 5 | . 1 . . 4 Utility 8 | . . 2 . 6 Weapon 5 | . . 1 . 4 Tool/Special . | . . . . . Average Slot Usage (%) 96 | . 98 93 100 95 Engine 11 | . 14 10 11 10 Treads 27 | . 28 25 33 31 Wheel 2 | . . 5 . . Device 11 | . 7 13 11 10 Storage 11 | . 14 11 11 11 Processor 3 | . 1 1 11 10 Protection 3 | . 4 4 . . Energy Gun 2 | . 1 3 . . Energy Cannon 5 | . . 9 . . Ballistic Gun 9 | . 26 4 . . Ballistic Cannon 5 | . . 3 21 20 Peak Build Rating 22 | 6 8 22 20 20 Average Rating 14 | 4 6 16 19 19 On Entrance 10 | . 6 8 20 20 Naked Turns . | . . . . . Heaviest Build 62 | 14 49 62 57 57 Greatest Support 63 | 40 40 63 63 63 Greatest Overweight (x) 4 | . 1 4 . 2 Average Overweight (x) . | . . . . . Largest Inventory Capacity 20 | 8 20 20 20 20 Average Capacity 17 | 7 11 19 20 20 Most Carried 20 | 5 8 20 20 20 Average Carried 11 | . 3 14 19 19 Final Capacity 20 | 8 8 20 20 20 Final Carried 20 | 1 8 20 20 20 Class Distribution -------------------- 78% | Mutant 21% | Scavenger-Mutant Dominant Class ---------------- Mutant | -10/Materials Mutant | -9/Materials Mutant | -9/Mines Mutant | -9/Exiles Resources | -11 -10 -9 -9 -9 ----------- Run | Yrd Mat Mat Min Exi Matter Collected 1769 | 207 368 906 218 70 Remotely . | . . . . . Salvage Created 2659 | . 531 2033 95 . Parts 171 | . 39 124 8 . Haulers Intercepted 7 | . 1 6 . . Recyclers Shooed 2 | . . 2 . . Parts Field Recycled . | . . . . . Retrieved Matter . | . . . . . Parts Self-Destructed . | . . . . . Prevented . | . . . . . Kills | -11 -10 -9 -9 -9 ------- Run | Yrd Mat Mat Min Exi Combat Hostiles Destroyed 48 | . 10 33 5 . Guns 24 | . 10 14 . . Cannons 19 | . . 16 3 . AOE 4 | . . 2 2 . Classes Destroyed 11 | . 8 2 1 . Worker 8 | . 1 5 2 . Builder 4 | . 1 3 . . Tunneler 3 | . 1 2 . . Hauler 7 | . 1 6 . . Recycler 5 | . 1 4 . . Operator 2 | . . 2 . . Watcher 7 | . 2 5 . . Swarmer 14 | . 3 8 3 . Grunt 24 | . 7 16 1 . Brawler 1 | . . . 1 . Sentry 9 | . . 9 . . Best Kill Streak 5 | . 2 5 4 . Combat Bots Only 3 | . 2 3 3 . Max Kills in Single Turn 2 | . 1 2 2 . Gunslinging . | . . . . . Exploded 2 | . . 2 1 . Melee . | . . . . . Uniques/NPCs Destroyed . | . . . . . Combat | -11 -10 -9 -9 -9 -------- Run | Yrd Mat Mat Min Exi Hostile Shots Fired 308 | . 66 132 15 95 Missed 82 | . 15 34 6 27 Hits 226 | . 51 98 9 68 Melee 17 | . . . . 17 Projectile 209 | . 51 98 9 51 AOE 1 | . . 1 . . Critical Strikes 9 | . . 2 . 7 Part Disruptions 2 | . . . . 2 Damage Taken 3009 | . 540 1246 110 1113 Core 536 | . 102 162 . 272 Absorbed by Shields . | . . . . . Redirected to Shielding 37 | . 37 . . . Regen/Repaired (Parts) 25 | . . 25 . . Core Remaining (%) 79 | 100 59 . . . Volleys Fired 207 | . 72 123 10 2 Largest 2 | . 2 2 2 2 Hottest 136 | . 40 136 66 66 Shots Fired 404 | . 144 238 17 5 Gun 288 | . 144 144 . . Cannon 110 | . . 91 14 5 Launcher 6 | . . 3 3 . Special . | . . . . . Kinetic 265 | . 144 102 14 5 Thermal 133 | . . 133 . . Explosive 6 | . . 3 3 . Electromagnetic . | . . . . . Robot Hit Streak 19 | . 13 19 7 4 Robot Miss Streak 5 | . 5 5 1 1 Penetration Max . | . . . . . Secondary Targets 2 | . 2 . . . Max Gunslinging Chain 1 | . 1 . . . Shots Hit Robots 256 | . 95 150 7 4 Core Hits 121 | . 39 74 8 . Critical Kills 3 | . 1 2 . . Critical Parts Destroyed 1 | . 1 . . . Critical Strikes 9 | . 2 7 . . Burn 4 | . . 4 . . Meltdown 1 | . . 1 . . Destroy 3 | . 2 1 . . Blast 1 | . . 1 . . Melee Attacks . | . . . . . Impact . | . . . . . Slashing . | . . . . . Piercing . | . . . . . Sneak Attacks . | . . . . . Combat Hostiles . | . . . . . Follow-up Attacks . | . . . . . Damage Inflicted 4101 | . 877 2817 316 91 Guns 2105 | . 872 1233 . . Cannons 1458 | . . 1233 134 91 Explosions 499 | . . 330 169 . Melee . | . . . . . Ramming 39 | . 5 21 13 . Kinetic 1932 | . 872 835 134 91 Thermal 1785 | . . 1785 . . Explosive 345 | . . 176 169 . Electromagnetic . | . . . . . Impact . | . . . . . Slashing . | . . . . . Piercing . | . . . . . Highest Corruption 22 | . . 3 3 22 Average Corruption 3 | . . 2 3 3 Corruption Purged . | . . . . . Corruption Blocked . | . . . . . Effects 37 | . . 20 11 6 Message Errors 6 | . . 3 3 . Matter Fused 13 | . . 7 4 2 Heat Flow Errors 6 | . . 4 1 1 Energy Discharges 5 | . . 2 2 1 Data Loss (minor) 4 | . . 2 1 1 Data Loss (major) 1 | . . 1 . . Misfires 1 | . . . . 1 Alerts 1 | . . 1 . . Overload Shots . | . . . . . Overflow Damage 71 | . . 45 4 22 Projectiles 57 | . . 31 4 22 Explosions 14 | . . 14 . . Melee . | . . . . . Knockbacks 4 | . . 1 3 . Impact . | . . . . . Kinetic 3 | . . 1 2 . Secondary 1 | . . . 1 . Self-Inflicted Damage 84 | . . 44 40 . Shots 2 | . . 1 1 . Rammed 6 | . 3 2 1 . Targets Rammed 9 | . 3 4 2 . Kicked . | . . . . . Crushed 3 | . . 2 1 . Highest Temperature 276 | . 18 181 86 276 Average Temperature 43 | . 8 43 45 122 Received Heat Transfer 953 | . 216 417 . 320 Siege Activations . | . . . . . Martial Activations . | . . . . . Shielding Activations . | . . . . . Robots Disrupted . | . . . . . Combat Hostiles . | . . . . . Robots Corrupted . | . . . . . Combat Hostiles . | . . . . . Parts Fried . | . . . . . Impact Corruptions . | . . . . . Robots Melted 2 | . . 2 . . Combat Hostiles 1 | . . 1 . . Parts Melted 11 | . . 11 . . Heat Transferred 3628 | . . 3628 . . Parts Sabotaged . | . . . . . Parts Stolen . | . . . . . Parts Stripped . | . . . . . Power Chain Reactions . | . . . . . Alert | -11 -10 -9 -9 -9 ------- Run | Yrd Mat Mat Min Exi Maximum Alert Level 2 | . . 2 . . Low Security (%) 79 | 100 100 63 100 . Level 1 10 | . . 18 . . Level 2 10 | . . 17 . . Level 3 . | . . . . . Level 4 . | . . . . . Level 5 . | . . . . . High Security . | . . . . . Max Security . | . . . . . Peak Influence 598 | . 105 598 131 . Initial 63 | . . . 63 . Average 135 | . 27 210 55 . Influence Increases 1742 | . 320 1273 149 . Destroy 0b10 Robot/C 960 | . 200 660 100 . Destroy 0b10 Robot/NC 180 | . 35 135 10 . Destroy Leader 278 | . 56 202 20 . Successful Hack 50 | . 14 36 . . Disable Machine 105 | . . 105 . . Destroy Structure 94 | . . 75 19 . Lose Combat Pursuer 75 | . 15 60 . . Influence Decreases 1742 | . 317 1113 297 15 Entered New Map 118 | . . 3 100 15 Time Decay 1091 | . 264 630 197 . Lost Part 30 | . . 30 . . Purge Threat 503 | . 53 450 . . Squads Dispatched 6 | . 2 4 . . Investigation 2 | . . 2 . . Extermination . | . . . . . Reinforcement 4 | . 2 2 . . Assault . | . . . . . Garrison . | . . . . . Intercept . | . . . . . Searches Triggered . | . . . . . Construction Impeded . | . . . . . Haulers Reinforced . | . . . . . Active Scanning Responses . | . . . . . Cargo Convoy Interrupts . | . . . . . Stealth | -11 -10 -9 -9 -9 --------- Run | Yrd Mat Mat Min Exi Distress Signals 9 | . 2 7 . . Communications Jammed . | . . . . . Distress Signals . | . . . . . Times Spotted 91 | . 23 50 5 13 Peak Tracking Total 15 | . 5 4 3 15 Tactical Retreats 4 | . 1 2 . 1 Traps | -11 -10 -9 -9 -9 ------- Run | Yrd Mat Mat Min Exi Traps Triggered 4 | . . 4 . . Indirectly . | . . . . . Trap Hack Attempts . | . . . . . Triggered . | . . . . . Disarmed . | . . . . . Reprogrammed . | . . . . . Reused . | . . . . . Traps Extracted . | . . . . . Installed . | . . . . . Triggered . | . . . . . Machines | -11 -10 -9 -9 -9 ---------- Run | Yrd Mat Mat Min Exi Machines Disabled 8 | . . 7 . 1 Max in Single Turn 3 | . . 3 . 1 Machines Repaired . | . . . . . Machines Dismantled . | . . . . . Machines Sabotaged . | . . . . . Overloaded Fab Kills . | . . . . . Hacking | -11 -10 -9 -9 -9 --------- Run | Yrd Mat Mat Min Exi Machines Accessed 18 | . 6 12 . . Terminals 16 | . 6 10 . . Fabricators . | . . . . . Repair Stations 1 | . . 1 . . Recycling Units 1 | . . 1 . . Scanalyzers . | . . . . . Garrison Access . | . . . . . Total Hacks 47 | . 16 31 . . Successful 24 | . 9 15 . . Failed 22 | . 7 15 . . Catastrophic 3 | . 1 2 . . Database Lockouts 1 | . . 1 . . Manual 22 | . 9 13 . . Terminals 43 | . 16 27 . . Fabricators . | . . . . . Repair Stations 2 | . . 2 . . Recycling Units 2 | . . 2 . . Scanalyzers . | . . . . . Garrison Access . | . . . . . Terminal Hacks 16 | . 7 9 . . Record 4 | . 3 1 . . Part Schematic 2 | . . 2 . . Branch Access Points 1 | . . 1 . . Emergency Access Points 1 | . 1 . . . Alert Level 1 | . 1 . . . Unreport Threat 4 | . 1 3 . . Locate Traps 1 | . . 1 . . Dispatch Records 1 | . 1 . . . Hauler Manifests 1 | . . 1 . . Fabricator Hacks . | . . . . . Repair Station Hacks 2 | . . 2 . . Scan Component 1 | . . 1 . . Repair 1 | . . 1 . . Recycling Unit Hacks 1 | . . 1 . . Report Inventory 1 | . . 1 . . Scanalyzer . | . . . . . Garrison Access Hacks . | . . . . . Unauthorized Hacks 5 | . 2 3 . . Terminals 5 | . 2 3 . . Botnet 5 | . 2 3 . . Fabricators . | . . . . . Repair Stations . | . . . . . Recycling Units . | . . . . . Scanalyzers . | . . . . . Garrison Access . | . . . . . Data Cores Recovered . | . . . . . Used . | . . . . . Hacking Detections 16 | . 6 10 . . Full Trace Events 1 | . . 1 . . Feedback Events . | . . . . . Feedback Blocked . | . . . . . Robot Schematics Acquired . | . . . . . Robots Built . | . . . . . Authchips . | . . . . . Time . | . . . . . Total Robot Build Rating . | . . . . . Part Schematics Acquired 2 | . . 2 . . Parts Built . | . . . . . Authchips . | . . . . . Time . | . . . . . Total Part Build Rating . | . . . . . Parts Repaired 1 | . . 1 . . Time 51 | . . 51 . . Parts Recycled . | . . . . . Recycled Matter . | . . . . . Retrieved Matter . | . . . . . Retrieved Components . | . . . . . Parts Scanalyzed . | . . . . . Part Schematics Acquired . | . . . . . Parts Damaged . | . . . . . Bothacking | -11 -10 -9 -9 -9 ------------ Run | Yrd Mat Mat Min Exi Used RIF Installer . | . . . . . Robots Hacked . | . . . . . Non-combat . | . . . . . Combat . | . . . . . Robot Hacks Applied . | . . . . . Relay Couplers Released . | . . . . . Fabnet Peak Effective % . | . . . . . Robots Rewired . | . . . . . Allies Hacked . | . . . . . Hacks Repelled . | . . . . . Allies | -11 -10 -9 -9 -9 -------- Run | Yrd Mat Mat Min Exi Total Allies . | . . . . . Largest Group . | . . . . . Highest-Rated Group . | . . . . . Highest-Rated Ally . | . . . . . Total Orders . | . . . . . Ally Attacks . | . . . . . Total Damage . | . . . . . Kills . | . . . . . Allies Corrupted . | . . . . . Allies Melted . | . . . . . Intel | -11 -10 -9 -9 -9 ------- Run | Yrd Mat Mat Min Exi Active Infowar (turns) 2548 | . 639 1227 433 249 Terrain 199 | . . 199 . . Structural 27 | . . 27 . . Seismic 2347 | . 639 1026 433 249 Robot Analysis Total . | . . . . . Derelict Logs Recovered . | . . . . . Drone Launches . | . . . . . Drone Recoveries . | . . . . . Exploration | -11 -10 -9 -9 -9 ------------- Run | Yrd Mat Mat Min Exi Turns Passed 4404 | 73 1251 2389 433 258 Spaces Moved 2036 | 47 547 1061 240 141 Core 17 | 17 . . . . Treads 1717 | 30 547 759 240 141 Legs . | . . . . . Wheels 302 | . . 302 . . Hover . | . . . . . Flight . | . . . . . Fastest Speed 50 | 50 160 93 160 160 Average Speed 155 | 120 174 146 160 162 Slowest Speed 320 | 160 240 240 160 320 Overloaded Moves . | . . . . . Propulsion Burnouts . | . . . . . Robots Hopped . | . . . . . Potential Cave-ins . | . . . . . Cave-ins Triggered . | . . . . . Exploration Rate (%) 54 | 4 90 94 40 43 Regions Visited 4 Branch Regions 2 Pre-discovered Areas . | . . . . . Known Exits Taken 1 | . . 1 . . Unknown Exits Taken 3 | 1 1 . 1 . Scrap Searched 1 | . . . 1 . Spaces Dug 1 | . . . 1 . Terrain Destroyed 86 | . . 67 19 . Melee . | . . . . . Projectile 1 | . . . 1 . AOE 85 | . . 67 18 . Terrain Rammed . | . . . . . Walls Destroyed . | . . . . . Machines Disabled . | . . . . . Actions | -11 -10 -9 -9 -9 --------- Run | Yrd Mat Mat Min Exi Total 2898 | 63 722 1676 271 166 Wait 446 | 5 72 340 10 19 Move 2032 | 46 546 1060 239 141 Hop . | . . . . . Pick Up 53 | 6 7 37 2 1 Fast Attach 19 | 1 5 13 . . Attach 24 | 5 1 18 . . Detach 23 | . 4 19 . . Swap 37 | . 5 27 4 1 Drop 47 | . 7 35 3 2 Fire 207 | . 72 123 10 2 Melee . | . . . . . Ram . | . . . . . Kick . | . . . . . Crush 9 | . 3 4 2 . Escape Stasis . | . . . . . Rewire 1 | . . . 1 . Trap . | . . . . . Miscellaneous . | . . . . . Route ------- -11/Scrapyard -10/Materials (discovered 3 exits: *Mat / [*Min] / [*Sub]) -9/Materials (discovered 5 exits: [*Mat x3] / *Min x2) -9/Mines (discovered 2 exits: [*Mat] / [*Exi]) -9/Exiles History --------- Turn | Location | Event 7 | -11/Scrapyard | Discovered new exit (range 14) 74 | -11/Scrapyard | Entered Materials 252 | -10/Materials | Discovered new exit (range 14) 316 | -10/Materials | Build established: Mutant 330 | -10/Materials | Discovered new exit (range 13) 1291 | -10/Materials | Discovered new exit (range 16) 1325 | -10/Materials | Entered another Materials area 1325 | -9/Materials | Evolved 2 slots: Propulsion x1, Utility x1 1448 | -9/Materials | Discovered new exit (range 16) 1979 | -9/Materials | Discovered new exit (range 7) 2254 | -9/Materials | Build established: Scavenger-Mutant 2433 | -9/Materials | Identified exit to Mines 2506 | -9/Materials | Central database locked down 2665 | -9/Materials | Build established: Mutant 2715 | -9/Materials | Discovered new exit (range 13) 3398 | -9/Materials | Repaired Hvy. Ion Engine 3424 | -9/Materials | Discovered new exit (range 13) 3714 | -9/Materials | Entered Mines 3796 | -9/Mines | Discovered new exit (range 16) 3893 | -9/Mines | Received a Rocket Launcher from a helpful Derelict 3973 | -9/Mines | Deemed a non-threat by the Exiles lab entrance 3973 | -9/Mines | Discovered new exit (range 5) 4147 | -9/Mines | Entered Exiles 4184 | -9/Exiles | Met 8R-AWN 4213 | -9/Exiles | Met EX-HEX 4308 | -9/Exiles | Met EX-DEC 4335 | -9/Exiles | Visited The Gauntlet 4355 | -9/Exiles | Attacked by the Exiles 4386 | -9/Exiles | Core integrity fell below 50% 4397 | -9/Exiles | System corruption reached 10% 4402 | -9/Exiles | Core integrity fell below 20% 4405 | -9/Exiles | Destroyed by as-01617 with Assembled Maul Last Messages --------------- 04375_ Acquired 20 matter. 04376_ EX-BIN: "I just want to science!" 04377_ DK-RAY destroyed. 04378_ System corrupted: Component data lost. 04385_ Lgt. Treads destroyed. 04387_ Adv. Targeting Computer destroyed. 04387_ System corrupted by crushing effect (+1). 04389_ Imp. Light Cannon severed. 04394_ Lgt. Treads destroyed. 04396_ Imp. Treads destroyed. 04396_ Seismic Detector destroyed. 04396_ System corrupted by crushing effect (+2). 04396_ System corrupted by crushing effect (+4). 04396_ Hvy. Ion Engine destroyed. 04396_ System corrupted by crushing effect (+4). 04397_ System corrupted: Energy discharge (-33). 04399_ Imp. Light Cannon destroyed. 04399_ System corrupted by crushing effect (+5). 04399_ Knocked back. 04402_ as-01034 destroyed. Map ----- +----------------------------------------------------+ | ????????????????????????????????????????? | | ????????????????????????????????????????? | | ?????????????????????????????????????????? | | ????????????????????????? ??????????????? | | ??????????????????????? ??????????????? | | ????????????????????? ?????????????? | | ???????????????????? ??????????????#""" | | ??????????????????? ""?????????????#""" | | ?????????????????? """?????????????#"""" | | ?????????????????" ""????????????##"" | | ????????????????? ########??####"""" | | ????????????????"" ## ####""" | | ????????????????? """" | | ?????????????????" | | ????????????????"""" | | ????????????????# | | ?????????????????" " "" | | ????????????????#"""" g ""## ##""" " | | ????????????????#"" ""#### ######"" | | ????????????????#" """"##??# #????### | | ????????????????#""" """#??## ####???# | | ?????????????????# ""##??#! "!#???? | | ?????????????????#"" """##???#" !#???? | | ?????????????????##""" a ##????#" ! "#???? | | ???????????????????#"""" a a ##?????#!!"" "#???? | | ???????????????????### @a #??????########???? | | ?????????????????????#####aa ##?????????????????? | | ?????????????????????????## z #??????????????????? | | ??????????????????????????# %=#??????????????????? | | ??????????????????????????#%*%#??????????????????? | | ??????????????????????????#*% #??????????????????? | | ??????????????????????????# = #??????????????????? | | ??????????????????????????# #??????????????????? | | ??????????????????????????# #??????????????????? | | ??????????????????????????# #??????????????????? | | ??????????????????????????# #??????????????????? | | ??????????????????????????# #??????????????????? | | ?????????????????????###### ########???????????? | | ????????????????"" """""" """""""#???????????? | | ???????????????"" "#"" ""#?????? | | ?????????????? " ""#?????? | | ?????????????? " " "#?????? | | ?????????????? " """#?????? | | ??????????????? "" #"" ""??????? | | ???????????????"" " """" """""#"""""??????? | | ????????????????##"""########"""######?####??????? | | ?????????????????" ?????????" "????????????????? | | ???????????????????????????"" ""????????????????? | | ??????????????????????????#""""""????????????????? | | ???????????????????????????"" """????????????????? | +----------------------------------------------------+ Best States ------------- Heat Dissipation 42 Energy Generation 14 Energy Capacity 280 Matter Stores 300 Matter Capacity 300 Sight Range 16 Terrain Scan Range 14 Terrain Scan Density 85 Armor Coverage 150 Propulsion Shielding 33 Evasion (%) 41 Targeting Accuracy 8 Recoil Reduction 3 Item Schematics ----------------- Hcp. Storage Unit | -9/Materials | Hacked Med. Armor Plating | -9/Materials | Hacked Robot Schematics ------------------ None Fabricated ------------ Nothing Repaired ---------- Hvy. Ion Engine | 77% | -9/Materials Alien Tech Used ----------------- None Achievements -------------- Let's See Who's Tougher Challenges ------------ None Game ------ Seed HoverSpikedDeconstructor Manual? 0 Play Time 00:48:07 Cumulative 32.5 hours Start 2025.06.13 @ 17:43:55 End 2025.06.13 @ 18:36:38 Sessions 1 Manual Loads 0 Difficulty Rogue Special Mode None Game No. 26 Rogue 19 Adventurer 7 Explorer 0 Win Type - Total 0 Types 0/0/0/0/0/0/0/0/0/0 Lore% 12 Gallery% 20 Achievement% 22 Wizard Run 0 Options --------- Layout 1 ASCII 0 Keyboard 1 Movement Numpad Keybinds 0 Fullscreen 2 Font 32/SmallcapsGlow Map View 50x35 Zoom Use 0% Tactical HUD 1 Map Filters NONE Filters NONE Steam 1 RUN: 5bfcf5c8-5549-417d-bcf5-77462c16b5e6